Cogmind - Beta 16 @@@ ROGUE MODE // 2025.11.08 @ 11:18:59 Player: beans Result: Destroyed by S-27 Virus with Autogun Performance ------------- Evolutions (3) 1500 Regions Visited (7) 1400 Robots Destroyed (130) 650 Value Destroyed (3231) 3231 Prototype IDs (7) 140 Alien Tech Used (0) 0 Bonus (43) 43 TOTAL SCORE: 6964 Bonus ------- High Alert Combat Kills 86 Friendly Fire -43 Cogmind --------- Core Integrity 0/700 Matter 245/300 Energy 6/100 System Corruption 0% Temperature Cool (0) Movement Core (150) Ox2 Location -7/Storage Parts ------- > --- POWER (2) -------- (None) > --- PROPULSION (3) --- (None) > --- UTILITY (4) ------ Graphene Brace > --- WEAPON (4) ------- EM Pulse Cannon > --- INVENTORY (5) ---- Enhanced Nuclear Core Hacking Suite Peak State ------------ > --- POWER ------------ Light Deuterium Engine Enhanced Nuclear Core > --- PROPULSION ------- Advanced Treads Advanced Treads Improved Cesium-ion Thruster > --- UTILITY ---------- High-capacity Matter Pod Active Sensor Suite > --- WEAPON ----------- Improved Assault Rifle Enhanced Autogun Enhanced Autogun Enhanced Autogun > --- INVENTORY -------- Improved Heat Sink Graphene Brace Hacking Suite Heavy Assault Cannon [Rating: 63] Favorites ----------- Power Improved Ion Engine Engine Improved Ion Engine Power Core Enhanced Nuclear Core Propulsion Light Treads Treads Light Treads Leg Aluminum Leg Flight Unit Improved Cesium-ion Thruster Utility High-capacity Matter Pod Device Cooling System Storage High-capacity Matter Pod Processor Targeting Computer Protection Light Armor Plating Weapon Enhanced Autogun Energy Gun Heavy EM Shotgun Energy Cannon EM Pulse Cannon Ballistic Gun Enhanced Autogun Ballistic Cannon Gauss Cannon Launcher Mini Grenade Launcher Special Weapon Welding Torch Build | -11 -10 -10 -9 -9 -8 -7 -7 ------- Run | Yrd Mat Min Mat Min Mat Fac Sto Slots Evolved 6 | . . . 2 . 2 2 . Power 1 | . . . . . . 1 . Propulsion 1 | . . . . . . 1 . Utility 2 | . . . . . 2 . . Weapon 2 | . . . 2 . . . . Parts Attached 57 | 5 1 6 27 1 3 8 6 Power 9 | 1 . 1 3 1 . 2 1 Engine 5 | 1 . . 3 . . 1 . Core 4 | . . 1 . 1 . 1 1 Reactor . | . . . . . . . . Propulsion 12 | 2 . 2 2 . 2 2 2 Treads 8 | . . 2 2 . 2 1 1 Leg 3 | 2 . . . . . . 1 Wheel . | . . . . . . . . Hover . | . . . . . . . . Flight 1 | . . . . . . 1 . Utility 9 | . 1 1 4 . 1 . 2 Device 6 | . . . 3 . 1 . 2 Storage 1 | . 1 . . . . . . Processor 1 | . . . 1 . . . . Hackware . | . . . . . . . . Protection 1 | . . 1 . . . . . Artifact . | . . . . . . . . Weapon 27 | 2 . 2 18 . . 4 1 Energy Gun 4 | . . . 3 . . 1 . Energy Cannon 1 | . . . . . . . 1 Ballistic Gun 17 | 2 . 2 13 . . . . Ballistic Cannon 3 | . . . . . . 3 . Launcher 1 | . . . 1 . . . . Special Weapon 1 | . . . 1 . . . . Impact Weapon . | . . . . . . . . Slashing Weapon . | . . . . . . . . Piercing Weapon . | . . . . . . . . Special Melee Weapon . | . . . . . . . . Unidentified Prototypes 7 | . . . 3 . 1 3 . Parts Lost 32 | . . 3 11 . 2 1 15 Power 5 | . . 1 2 . . . 2 Propulsion 9 | . . 2 2 . . . 5 Utility 5 | . . . 1 . 1 . 3 Weapon 13 | . . . 6 . 1 1 5 Highest Loss Streak 8 | . . 3 5 . 2 1 8 To Critical Strikes 1 | . . . 1 . . . . Average Backups 3 | 2 3 1 3 5 4 3 4 Power . | . . . . . . . . Propulsion . | . . . . . . . . Utility . | . . . . 1 1 3 2 Weapon 2 | 2 3 1 3 3 2 . 1 Tool/Special . | . . . . . . . . Unused Backups 2 | . . . 1 . . . 1 Power . | . . . . . . . . Propulsion . | . . . . . . . . Utility 1 | . . . . . . . 1 Weapon 1 | . . . 1 . . . . Tool/Special . | . . . . . . . . Average Slot Usage (%) 82 | . 48 79 91 100 80 71 52 Engine 7 | . 14 1 9 7 . 6 3 Core 3 | . . 9 . 3 9 7 5 Treads 16 | . . 2 19 22 18 16 10 Leg 2 | . 28 22 . . . . 1 Device 7 | . . . 8 11 8 7 10 Storage 9 | . 6 14 11 11 9 7 3 Energy Gun 5 | . . . 10 . . . . Ballistic Gun 26 | . . 26 29 44 35 18 7 Ballistic Cannon 1 | . . . . . . 5 7 Peak Build Rating 63 | 5 4 8 24 26 54 63 58 Average Rating 27 | 1 3 7 18 24 30 56 45 On Entrance 22 | . 3 4 8 24 26 54 58 Avg Prop Armor Cover (%) 26 | . . . . . . . 26 Naked Turns 27 | . . . . . . . 27 Heaviest Build 40 | 5 9 13 28 25 26 40 38 Greatest Support 67 | 20 20 40 40 40 44 67 67 Greatest Overweight (x) 5 | . . 3 4 . . . 5 Average Overweight (x) . | . . . . . . . . Largest Inventory Capacity 5 | 5 5 5 5 5 5 5 5 Average Capacity 5 | 5 5 5 5 5 5 5 5 Most Carried 5 | 5 4 5 5 5 5 5 5 Average Carried 3 | 2 3 1 3 5 4 4 4 Final Capacity 5 | 5 5 5 5 5 5 5 5 Final Carried 5 | 3 3 4 5 5 5 5 2 Class Distribution -------------------- 42% | Gunner 25% | Skirmisher 13% | Scavenger-Gunner 13% | Mutant 3% | Scavenger-Tank Dominant Class ---------------- Mutant | -10/Materials Mutant | -10/Mines Gunner | -9/Materials Gunner | -9/Mines Gunner | -8/Materials Skirmisher | -7/Factory Skirmisher | -7/Storage Resources | -11 -10 -10 -9 -9 -8 -7 -7 ----------- Run | Yrd Mat Min Mat Min Mat Fac Sto Matter Collected 3219 | 235 . 189 1397 122 473 531 272 Remotely . | . . . . . . . . Salvage Created 5107 | . . 189 2866 278 712 666 396 Parts 312 | . . 14 197 12 38 41 10 Haulers Intercepted 6 | . . . 4 . . 2 . Recyclers Shooed 1 | . . . 1 . . . . Parts Field Recycled . | . . . . . . . . Retrieved Matter . | . . . . . . . . Parts Self-Destructed . | . . . . . . . . Prevented . | . . . . . . . . Parts Restored . | . . . . . . . . Kills | -11 -10 -10 -9 -9 -8 -7 -7 ------- Run | Yrd Mat Min Mat Min Mat Fac Sto Combat Hostiles Destroyed 74 | . . 4 41 4 10 6 9 Guns 60 | . . 4 36 4 10 1 5 Cannons 10 | . . . 1 . . 5 4 AOE 4 | . . . 4 . . . . Classes Destroyed 16 | . . 2 9 . 3 1 1 Worker 13 | . . . 9 . . 4 . Builder 11 | . . . 10 . . 1 . Tunneler 3 | . . . 3 . . . . Hauler 6 | . . . 4 . . 2 . Recycler 12 | . . . 5 2 2 3 . Mechanic 1 | . . . 1 . . . . Operator 2 | . . . 1 . . 1 . Watcher 8 | . . . 5 . 1 2 . Swarmer 11 | . . . 7 3 . . 1 Cutter 1 | . . . . . 1 . . Grunt 40 | . . 2 25 1 6 3 3 Brawler 1 | . . . . . 1 . . Sentry 16 | . . 2 9 . 1 2 2 Hunter 3 | . . . . . . . 3 Programmer 1 | . . . . . . 1 . Heavy 1 | . . . . . 1 . . Best Kill Streak 10 | . . 2 10 3 8 8 3 Combat Bots Only 7 | . . 2 7 3 5 4 3 Max Kills in Single Turn 3 | . . 1 3 2 1 2 1 Gunslinging 1 | . . . 1 1 . . . Exploded 2 | . . . 2 . . . . Melee . | . . . . . . . . Uniques/NPCs Destroyed . | . . . . . . . . Combat | -11 -10 -10 -9 -9 -8 -7 -7 -------- Run | Yrd Mat Min Mat Min Mat Fac Sto Hostile Shots Fired 623 | . 12 41 148 8 37 58 319 Missed 228 | . 6 9 43 3 11 22 134 Hits 395 | . 6 32 105 5 26 36 185 Melee 6 | . . . . . 6 . . Projectile 389 | . 6 32 105 5 20 36 185 AOE 1 | . . . . . 1 . . Critical Strikes 6 | . . 2 1 . 2 . 1 Damage Taken 5451 | . 91 461 1469 43 764 532 2091 Core 1211 | . 45 130 174 15 138 31 678 Absorbed by Shields . | . . . . . . . . Regen/Repaired (Parts) 146 | . . . . . . . 146 Core Remaining (%) 64 | 100 . 30 . 52 74 . . Volleys Fired 292 | . . 15 159 7 33 37 41 Largest 4 | . . 2 4 4 4 4 3 Hottest 150 | . . 40 150 100 100 105 120 Shots Fired 759 | . . 30 414 28 127 73 87 Gun 660 | . . 30 390 28 127 34 51 Cannon 75 | . . . . . . 39 36 Launcher 1 | . . . 1 . . . . Special 23 | . . . 23 . . . . Kinetic 580 | . . 30 250 28 127 72 73 Thermal 23 | . . . 23 . . . . Explosive 1 | . . . 1 . . . . Electromagnetic 155 | . . . 140 . . 1 14 Robot Hit Streak 14 | . . 8 14 5 13 8 8 Robot Miss Streak 7 | . . 2 6 1 5 7 6 Penetration Max 1 | . . . . . . 1 . Secondary Targets 14 | . . 1 8 1 4 . . Max Gunslinging Chain 1 | . . 1 1 1 1 . . Shots Hit Robots 420 | . . 21 220 13 77 39 50 Core Hits 198 | . . 9 112 6 27 25 19 Critical Kills 1 | . . . . . 1 . . Critical Parts Destroyed 2 | . . 1 1 . . . . Critical Strikes 12 | . . 1 1 . 1 4 5 Destroy 3 | . . 1 1 . 1 . . Blast 8 | . . . . . . 4 4 Corrupt 1 | . . . . . . . 1 Melee Attacks . | . . . . . . . . Impact . | . . . . . . . . Slashing . | . . . . . . . . Piercing . | . . . . . . . . Sneak Attacks . | . . . . . . . . Combat Hostiles . | . . . . . . . . Follow-up Attacks . | . . . . . . . . Damage Inflicted 8272 | . . 262 3711 232 1411 1602 1054 Guns 6052 | . . 262 3295 232 1411 302 550 Cannons 1595 | . . . . . . 1094 501 Explosions 598 | . . . 392 . . 206 . Melee . | . . . . . . . . Ramming 3 | . . . . . . . 3 Kinetic 6142 | . . 262 2014 232 1411 1396 827 Thermal 405 | . . . 405 . . . . Explosive 217 | . . . 11 . . 206 . Electromagnetic 1505 | . . . 1281 . . . 224 Impact . | . . . . . . . . Slashing . | . . . . . . . . Piercing . | . . . . . . . . Highest Corruption . | . . . . . . . . Average Corruption . | . . . . . . . . Corruption Purged . | . . . . . . . . Corruption Blocked . | . . . . . . . . Overload Shots . | . . . . . . . . Overflow Damage 109 | . . . 14 . . 93 2 Projectiles 82 | . . . . . . 80 2 Explosions 27 | . . . 14 . . 13 . Melee . | . . . . . . . . Knockbacks 9 | . . . . . . 5 4 Impact . | . . . . . . . . Kinetic 9 | . . . . . . 5 4 Secondary . | . . . . . . . . Self-Inflicted Damage 213 | . . . 143 . . 69 1 Shots 7 | . . . 6 . . 1 . Rammed 3 | . . . . . . . 3 Targets Rammed 4 | . . . . . . . 4 Kicked 1 | . . . . . . . 1 Crushed . | . . . . . . . . Highest Temperature 327 | . . 27 124 80 327 244 284 Average Temperature 62 | . . 12 32 42 96 79 97 Received Heat Transfer 1434 | . 48 204 480 . 126 174 402 Effects 6 | . . . . . 1 . 5 Energy Bleed 1 | . . . . . 1 . . Interference 5 | . . . . . . . 5 Siege Activations . | . . . . . . . . Martial Activations . | . . . . . . . . Shielding Activations . | . . . . . . . . Robots Disrupted . | . . . . . . . . Combat Hostiles . | . . . . . . . . Robots Corrupted . | . . . . . . . . Combat Hostiles . | . . . . . . . . Parts Fried 1 | . . . 1 . . . . Impact Corruptions . | . . . . . . . . Robots Melted . | . . . . . . . . Combat Hostiles . | . . . . . . . . Parts Melted 1 | . . . 1 . . . . Heat Transferred 475 | . . . 475 . . . . Parts Sabotaged . | . . . . . . . . Parts Stolen . | . . . . . . . . Parts Stripped . | . . . . . . . . Power Chain Reactions 7 | . . . 7 . . . . Alert | -11 -10 -10 -9 -9 -8 -7 -7 ------- Run | Yrd Mat Min Mat Min Mat Fac Sto Maximum Alert Level 2 | . . . 2 1 . 1 1 Low Security (%) 54 | 100 100 100 33 . 100 74 75 Level 1 20 | . . . 16 100 . 25 24 Level 2 25 | . . . 49 . . . . Level 3 . | . . . . . . . . Level 4 . | . . . . . . . . Level 5 . | . . . . . . . . High Security . | . . . . . . . . Max Security . | . . . . . . . . Peak Influence 621 | . . 50 621 260 198 259 307 Initial 240 | . . . . 240 85 80 96 Average 230 | . . 8 352 229 92 78 158 Influence Increases 2812 | . . 90 1373 100 293 394 562 Destroy 0b10 Robot/C 1480 | . . 80 820 80 200 120 180 Destroy 0b10 Robot/NC 280 | . . . 190 10 15 65 . Destroy Leader 418 | . . 10 228 10 62 48 60 Successful Hack 16 | . . . 2 . . . 14 Disable Machine 90 | . . . 60 . 15 15 . Destroy Structure 123 | . . . 73 . 1 31 18 Lose Combat Pursuer 105 | . . . . . . 15 90 Active Sensor Use 300 | . . . . . . 100 200 Influence Decreases 2534 | . . 90 756 497 335 360 496 Entered New Map 726 | . . . . 377 135 98 116 Time Decay 1498 | . . 70 646 120 180 252 230 Lost Part 310 | . . 20 110 . 20 10 150 Squads Dispatched 23 | . 1 . 7 1 3 3 8 Investigation 7 | . . . 2 1 1 1 2 Extermination 2 | . . . . . . 1 1 Reinforcement 11 | . 1 . 5 . 2 1 2 Assault . | . . . . . . . . Garrison 3 | . . . . . . . 3 Intercept . | . . . . . . . . Searches Triggered . | . . . . . . . . Construction Impeded 3 | . . . 1 . . 1 1 Haulers Reinforced . | . . . . . . . . Active Scanning Responses 3 | . . . . . . 1 2 Cargo Convoy Interrupts . | . . . . . . . . Stealth | -11 -10 -10 -9 -9 -8 -7 -7 --------- Run | Yrd Mat Min Mat Min Mat Fac Sto Distress Signals 4 | . 1 . 2 . 1 . . Communications Jammed . | . . . . . . . . Distress Signals . | . . . . . . . . Times Spotted 117 | . 5 4 52 3 19 11 23 Peak Tracking Total 14 | . 4 2 4 3 7 5 14 Tactical Retreats 3 | . . . . . . 1 2 Traps | -11 -10 -10 -9 -9 -8 -7 -7 ------- Run | Yrd Mat Min Mat Min Mat Fac Sto Traps Triggered 2 | . . . 2 . . . . Indirectly . | . . . . . . . . Trap Hack Attempts . | . . . . . . . . Triggered . | . . . . . . . . Disarmed . | . . . . . . . . Reprogrammed . | . . . . . . . . Reused . | . . . . . . . . Traps Extracted . | . . . . . . . . Installed . | . . . . . . . . Triggered . | . . . . . . . . Machines | -11 -10 -10 -9 -9 -8 -7 -7 ---------- Run | Yrd Mat Min Mat Min Mat Fac Sto Machines Disabled 7 | . . 1 4 . 1 1 . Max in Single Turn 2 | . . 1 2 . 1 1 . Machines Repaired . | . . . . . . . . Machines Dismantled . | . . . . . . . . Machines Sabotaged . | . . . . . . . . Overloaded Fab Kills . | . . . . . . . . Hacking | -11 -10 -10 -9 -9 -8 -7 -7 --------- Run | Yrd Mat Min Mat Min Mat Fac Sto Machines Accessed 5 | . . . 1 1 1 1 1 Terminals . | . . . . . . . . Fabricators 1 | . . . . . . 1 . Repair Stations 1 | . . . . . . . 1 Recycling Units . | . . . . . . . . Scanalyzers 2 | . . . 1 . 1 . . Garrison Access . | . . . . . . . . Total Hacks 8 | . . . 1 1 3 1 2 Successful 5 | . . . 1 1 1 . 2 Failed 2 | . . . . . 1 1 . Catastrophic . | . . . . . . . . Database Lockouts 1 | . . . . . 1 . . Manual . | . . . . . . . . Terminals . | . . . . . . . . Fabricators 1 | . . . . . . 1 . Repair Stations 2 | . . . . . . . 2 Recycling Units . | . . . . . . . . Scanalyzers 4 | . . . 1 . 3 . . Garrison Access . | . . . . . . . . Terminal Hacks 1 | . . . . 1 . . . Open Door 1 | . . . . 1 . . . Fabricator Hacks . | . . . . . . . . Repair Station Hacks 2 | . . . . . . . 2 Scan Component 1 | . . . . . . . 1 Repair 1 | . . . . . . . 1 Recycling Unit Hacks . | . . . . . . . . Scanalyzer 2 | . . . 1 . 1 . . Retrieve Study 2 | . . . 1 . 1 . . Garrison Access Hacks . | . . . . . . . . Unauthorized Hacks . | . . . . . . . . Terminals . | . . . . . . . . Fabricators . | . . . . . . . . Repair Stations . | . . . . . . . . Recycling Units . | . . . . . . . . Scanalyzers . | . . . . . . . . Garrison Access . | . . . . . . . . Data Cores Recovered 1 | . . . . . . 1 . Used . | . . . . . . . . Hacking Detections 3 | . . . . . 1 1 1 Full Trace Events 1 | . . . . . 1 . . Feedback Events . | . . . . . . . . Feedback Blocked . | . . . . . . . . Robot Schematics Acquired . | . . . . . . . . Robots Built . | . . . . . . . . Authchips . | . . . . . . . . Time . | . . . . . . . . Total Robot Build Rating . | . . . . . . . . Part Schematics Acquired . | . . . . . . . . Parts Built . | . . . . . . . . Authchips . | . . . . . . . . Time . | . . . . . . . . Total Part Build Rating . | . . . . . . . . Part Studies Acquired 2 | . . . 1 . 1 . . Parts Repaired 1 | . . . . . . . 1 Time 30 | . . . . . . . 30 Parts Recycled . | . . . . . . . . Recycled Matter . | . . . . . . . . Retrieved Matter . | . . . . . . . . Retrieved Components . | . . . . . . . . Parts Scanalyzed . | . . . . . . . . Part Schematics Acquired . | . . . . . . . . Parts Damaged . | . . . . . . . . Bothacking | -11 -10 -10 -9 -9 -8 -7 -7 ------------ Run | Yrd Mat Min Mat Min Mat Fac Sto Used RIF Installer . | . . . . . . . . Robots Hacked . | . . . . . . . . Non-combat . | . . . . . . . . Combat . | . . . . . . . . Robot Hacks Applied . | . . . . . . . . Relay Couplers Released . | . . . . . . . . Fabnet Peak Effective % . | . . . . . . . . Robots Rewired . | . . . . . . . . Allies Hacked . | . . . . . . . . Hacks Repelled . | . . . . . . . . Allies | -11 -10 -10 -9 -9 -8 -7 -7 -------- Run | Yrd Mat Min Mat Min Mat Fac Sto Total Allies . | . . . . . . . . Largest Group . | . . . . . . . . Highest-Rated Group . | . . . . . . . . Highest-Rated Ally . | . . . . . . . . Total Orders . | . . . . . . . . Ally Attacks . | . . . . . . . . Total Damage . | . . . . . . . . Kills . | . . . . . . . . Allies Corrupted . | . . . . . . . . Allies Melted . | . . . . . . . . Intel | -11 -10 -10 -9 -9 -8 -7 -7 ------- Run | Yrd Mat Min Mat Min Mat Fac Sto Active Infowar (turns) 1301 | . . . . . 33 883 385 A.S.S. 1301 | . . . . . 33 883 385 Robot Analysis Total . | . . . . . . . . Derelict Logs Recovered 3 | . . 1 . 2 . . . Drone Launches . | . . . . . . . . Drone Recoveries . | . . . . . . . . Exploration | -11 -10 -10 -9 -9 -8 -7 -7 ------------- Run | Yrd Mat Min Mat Min Mat Fac Sto Turns Passed 5205 | 46 61 392 2704 259 377 883 483 Spaces Moved 2716 | 42 49 260 1284 142 194 521 224 Core 145 | 21 . 11 14 . . . 99 Treads 2216 | . . 20 1270 142 194 521 69 Legs 355 | 21 49 229 . . . . 56 Wheels . | . . . . . . . . Hover . | . . . . . . . . Flight . | . . . . . . . . Fastest Speed 50 | 50 120 120 150 160 145 145 50 Average Speed 150 | 85 120 125 165 160 148 145 117 Slowest Speed 300 | 120 120 200 250 160 160 150 300 Overloaded Moves . | . . . . . . . . Propulsion Burnouts . | . . . . . . . . Robots Hopped . | . . . . . . . . Potential Cave-ins . | . . . . . . . . Cave-ins Triggered . | . . . . . . . . Exploration Rate (%) 34 | 3 17 55 78 32 25 15 50 Regions Visited 7 Branch Regions 3 Pre-discovered Areas 1 | . . . . 1 . . . Known Exits Taken 2 | . . . . . 1 1 . Unknown Exits Taken 5 | 1 1 1 1 1 . . . Scrap Searched . | . . . . . . . . Spaces Dug 9 | . . . 9 . . . . Terrain Destroyed 131 | . . . 85 . . 32 14 Melee . | . . . . . . . . Projectile 27 | . . . . . . 13 14 AOE 104 | . . . 85 . . 19 . Terrain Rammed . | . . . . . . . . Walls Destroyed . | . . . . . . . . Machines Disabled . | . . . . . . . . Actions | -11 -10 -10 -9 -9 -8 -7 -7 --------- Run | Yrd Mat Min Mat Min Mat Fac Sto Total 3354 | 53 51 295 1567 168 251 589 380 Wait 176 | . 1 5 39 18 12 9 92 Move 2709 | 41 48 259 1283 141 193 520 224 Hop . | . . . . . . . . Pick Up 52 | 5 1 7 29 . 3 4 3 Fast Attach 14 | 1 . . . 1 4 4 4 Attach 47 | 4 1 5 22 . 1 6 8 Detach 12 | 2 . . 5 . . 3 2 Swap 20 | . . 3 16 . . 1 . Drop 28 | . . 1 14 1 5 5 2 Fire 292 | . . 15 159 7 33 37 41 Melee . | . . . . . . . . Ram 3 | . . . . . . . 3 Kick 1 | . . . . . . . 1 Crush . | . . . . . . . . Escape Stasis . | . . . . . . . . Rewire . | . . . . . . . . Trap . | . . . . . . . . Miscellaneous . | . . . . . . . . Route ------- -11/Scrapyard -10/Materials -10/Mines -9/Materials (discovered 3 exits: *Mat x2 / *Min) -9/Mines -8/Materials -7/Factory (discovered 2 exits: *Sto / [*Low]) -7/Storage History --------- Turn | Location | Event 16 | -11/Scrapyard | Discovered new exit (range 16) 47 | -11/Scrapyard | Entered Materials 89 | -10/Materials | Discovered new exit (range 13) 108 | -10/Materials | Entered Mines 124 | -10/Mines | Met a Derelict bent on vengeance 303 | -10/Mines | Build established: Mutant 325 | -10/Mines | Found a hidden stash of uninstalled traps 394 | -10/Mines | Discovered new exit (range 5) 418 | -10/Mines | Core integrity fell below 50% 457 | -10/Mines | Lost 3 parts (1p2n) 500 | -10/Mines | Entered Materials 500 | -9/Materials | Evolved 2 slots: Weapon x2 687 | -9/Materials | Destroyed 7 combat bots 970 | -9/Materials | Build established: Scavenger-Gunner 1336 | -9/Materials | Discovered new exit (range 5) 1580 | -9/Materials | Lost 5 parts (1n4w) 2073 | -9/Materials | Discovered new exit (range 5) 2129 | -9/Materials | Build established: Gunner 2346 | -9/Materials | Discovered new exit (range 10) 3204 | -9/Materials | Entered Mines 3270 | -9/Mines | Learned Materials terminal intel 3292 | -9/Mines | Learned Materials terminal intel 3372 | -9/Mines | Met a Derelict shopkeep closing up shop 3445 | -9/Mines | Learned location of Storage (-7) 3446 | -9/Mines | Discovered new exit (range 7) 3463 | -9/Mines | Entered Materials 3463 | -8/Materials | Evolved 2 slots: Utility x2 3464 | -8/Materials | Loaded intel: 11 terminal locations 3610 | -8/Materials | Central database locked down 3799 | -8/Materials | Discovered new exit (range 16) 3807 | -8/Materials | Found Prototype Device 3807 | -8/Materials | Identified Active Sensor Suite 3839 | -8/Materials | Identified exit to Factory 3840 | -8/Materials | Entered Factory 3840 | -7/Factory | Evolved 2 slots: Power x1, Propulsion x1 3841 | -7/Factory | Identified exit to Storage 4132 | -7/Factory | Build established: Skirmisher 4583 | -7/Factory | Discovered new exit (range 15) 4723 | -7/Factory | Entered Storage 4918 | -7/Storage | Repaired Enh. Autogun 4949 | -7/Storage | Garrison activated, responded to threat 5009 | -7/Storage | Lost 6 parts (1p3n1u1w) 5161 | -7/Storage | Core integrity fell below 50% 5189 | -7/Storage | Core integrity fell below 20% 5201 | -7/Storage | Lost 8 parts (1p1n2u4w) 5206 | -7/Storage | Destroyed by S-27 Virus with Autogun Last Messages --------------- R-06 Scavenger collects Aluminum Leg. K-01 Serf collects debris. ALERT: Active scanning activity reported from Zone 5Z, dispatching Investigation squad. Transport Mainframe disabled. Enh. Autogun destroyed. Gauss Cannon destroyed. Kicked U-05 Engineer. ALERT: Construction progress impeded, dispatching reinforcements to local area. Active Sensor Suite destroyed. ALERT: Hostiles spotted, dispatching reinforcements to Terminal S013. Lgt. Nuclear Core destroyed. Imp. Titanium Leg destroyed. Imp. Heat Sink destroyed. Slammed into Y-54 Guardian. Prc. Shock Rifle destroyed. Acquired EM Pulse Cannon. S-27 Virus destroyed. Map ----- +----------------------------------------------------+ | ????????????????????????????????????????????????? | | ????????????????????????????????????????????????? | | ????????????????????????????????????????????????? | | ????????????????????????????????????????????????? | | ????????????????????????????????????????????????? | | ????????????????????????????????????????????????? | | ????????????????????????????????????????????????? | | ????????????????????????????????????????????????? | | ????????????????????????????????????????????????? | | ????????????????????????????????????????????????? | | ??????????????????????????????###+##????????????? | | ??????????????????????????????# ????????????? | | ??????????????????????????????# #???????????? | | ??????????????????????????????# [ #???????????? | | ??????????????????????????????# | #???????????? | | ??????????????????????????????# #???????????? | | ??????????????????????????????# ] #???????????? | | ???????????????????????????????] #???????????? | | ??????????????????????????????? #???????????? | | ???????????????????????????????? *#???????????? | | ???????????????????????????????? #???????????? | | ????????????????###############?? ????????????? | | ????????????????# ^ #?? ????????????? | | ????????????????# #??#/#????????????? | | ????????????????# """ ^ ]] #??# #????????????? | | ????????????????# """ @ #??# #????????????? | | ????????????????# """^ s%= #??# #????######??? | | ????????????????# s #??# #??### !!!#??? | | ??????????????########s########### ####T# !!!#??? | | ??????? # " #??? | | ??????? + !!#??? | | ??????? # " !!#??? | | ????????#####"Y"######+############# # #!!!!#??? | | ?????????????""????????????????????# #########??? | | ???????????????????????????????????# #########??? | | ???????????????????????????????????# ## ! !#??? | | ???????????????????????????????????# ## #??? | | ???????????????????????????????????# ## ! #??? | | ???????????????????????????????????# ## #??? | | ???????????????????????????????????# ## [???? | | ??????????????????????????????????## ## ?????? | | ???????????????????######?????????# ##+######## | | ???????????????????#"""""?????????# + # | | ###########??#######""T""###??????# # # | | # """ #??# #?????##### # # | | # ""R" #??# ??? #??# / """ # | | # "" " #??# ????? #?????####### # """ # | | # % #??# #??#####+#####????????# # """ # | | # #??# #??# #????????# ######## | | #! % #??# #??# """" #????????# #??????? | +----------------------------------------------------+ Best States ------------- Heat Dissipation 53 Energy Generation 26 Energy Capacity 340 Matter Stores 500 Matter Capacity 500 Sight Range 16 Robot Scan Range 20 Terrain Scan Density 10 Armor Coverage 150 Evasion (%) 55 Targeting Accuracy 5 Recoil Reduction 3 Item Schematics ----------------- None Robot Schematics ------------------ None Fabricated ------------ Nothing Repaired ---------- Enh. Autogun | 8% | -7/Storage Studied --------- Lgt. Treads | -9/Materials | Hacked Adv. Treads | -8/Materials | Hacked Alien Tech Used ----------------- None Achievements -------------- None Challenges ------------ None Game ------ Seed SeismicBarrageScrapsphere Manual? 0 Play Time 00:36:31 Cumulative 208.8 hours Start 2025.11.08 @ 08:35:12 End 2025.11.08 @ 11:18:59 Sessions 1 Manual Loads 0 Difficulty Rogue Special Mode None Game No. 606 Rogue 605 Adventurer 1 Explorer 0 Win Type - Total 0 Types 0/0/0/0/0/0/0/0/0/0 Lore% 64 Gallery% 61 Achievement% 37 Wizard Run 0 Options --------- Layout 1 ASCII 0 Keyboard 0 Movement Mouse Keybinds 0 Fullscreen 1 Font 24/Smallcaps Map View 50x35 Zoom Use 0% Tactical HUD 0 Map Filters NONE Filters NONE Steam 1 RUN: 1be0f951-5ef9-4ec3-acd0-4c77c01e07dd